fUST/lending_fUST_20250627
["ID","MTS","AMOUNT","RATE_DAILY","PERIOD"]
[368146000,1751038244011,-4140.86,0.00019451,2]
[368146001,1751038244020,-4140.86,0.00019451,2]
[368146002,1751038244030,-4140.86,0.00019451,2]
[368146003,1751038244039,-4140.86,0.00019451,2]
[368146004,1751038244048,-4140.86,0.00019451,2]
[368146005,1751038244057,-4140.86,0.00019451,2]
[368146006,1751038244067,-4140.86,0.00019451,2]
[368146007,1751038244077,-4141.07,0.00019451,2]
[368146008,1751038244088,-290.0,0.00019451,2]
[368146009,1751038244097,-460.0,0.00019452,2]
[368146010,1751038244107,-460.0,0.00019452,2]
[368146011,1751038244117,-460.0,0.00019452,2]
[368146012,1751038244127,-460.0,0.00019452,2]
[368146013,1751038244138,-509.00053076,0.00019452,2]
[368146014,1751038244148,-460.0,0.00019452,2]
[368146015,1751038244159,-452.47968654,0.00019452,2]
[368146016,1751038244169,-469.38909669,0.00019452,2]
[368146017,1751038244179,-308.47891596,0.00019452,2]
[368146018,1751038244188,-413.93,0.00019452,2]
[368146019,1751038244197,-460.0,0.00019452,2]
[368146020,1751038244206,-460.0,0.00019452,2]
[368146021,1751038244215,-437.94983703,0.00019452,2]
[368146022,1751038244224,-460.0,0.00019452,2]
[368146023,1751038244234,-460.0,0.00019452,2]
[368146024,1751038244243,-460.0,0.00019452,2]
[368146025,1751038244252,-460.0,0.00019452,2]
[368146026,1751038244261,-460.0,0.00019452,2]
[368146027,1751038244270,-460.0,0.00019452,2]
[368146028,1751038244279,-460.0,0.00019452,2]
[368146029,1751038244289,-317.14913141,0.00019452,2]
[368146030,1751038244298,-318.07,0.00019452,2]
[368146031,1751038244308,-460.0,0.00019452,2]
[368146032,1751038244318,-460.0,0.00019452,2]
[368146033,1751038244328,-460.0,0.00019452,2]
[368146034,1751038244339,-460.0,0.00019452,2]
[368146035,1751038244349,-460.0,0.00019452,2]
[368146036,1751038244358,-460.0,0.00019452,2]
[368146037,1751038244367,-460.0,0.00019452,2]
[368146038,1751038244377,-460.0,0.00019452,2]
[368146039,1751038244388,-540.18368541,0.00019452,2]
[368146040,1751038244398,-460.0,0.00019452,2]
[368146041,1751038244409,-460.0,0.00019452,2]
[368146042,1751038244418,-460.0,0.00019452,2]
[368146043,1751038244428,-460.0,0.00019452,2]
[368146044,1751038244438,-249.69076425,0.00019452,2]
[368146045,1751038244447,-608.04247293,0.00019452,2]
[368146046,1751038244457,-460.0,0.00019452,2]
[368146047,1751038244466,-460.0,0.00019452,2]
[368146048,1751038244476,-346.74976442,0.00019452,2]
[368146049,1751038244486,-389.36,0.00019452,2]
[368146050,1751038244495,-460.0,0.00019452,2]
[368146051,1751038244505,-460.0,0.00019452,2]
[368146052,1751038244515,-328.34135704,0.00019452,2]
[368146053,1751038244524,-460.0,0.00019452,2]
[368146054,1751038244534,-460.0,0.00019452,2]
[368146055,1751038244544,-460.0,0.00019452,2]
[368146056,1751038244553,-460.0,0.00019452,2]
[368146057,1751038244563,-460.0,0.00019452,2]
[368146058,1751038244573,-460.0,0.00019452,2]
[368146059,1751038244582,-460.0,0.00019452,2]
[368146060,1751038244592,-460.0,0.00019452,2]
[368146061,1751038244601,-460.0,0.00019452,2]
[368146062,1751038244611,-460.0,0.00019452,2]
[368146064,1751038244620,-487.3,0.00019452,2]
[368146065,1751038244630,-460.0,0.00019452,2]
[368146066,1751038244640,-460.0,0.00019452,2]
[368146067,1751038244650,-460.0,0.00019452,2]
[368146068,1751038244660,-460.0,0.00019452,2]
[368146069,1751038244670,-460.0,0.00019452,2]
[368146070,1751038244679,-460.0,0.00019452,2]
[368146071,1751038244689,-460.0,0.00019452,2]
[368146072,1751038244698,-460.0,0.00019452,2]
[368146073,1751038244708,-460.0,0.00019452,2]
[368146074,1751038244717,-460.0,0.00019452,2]
[368146075,1751038244727,-460.0,0.00019452,2]
[368146076,1751038244739,-460.0,0.00019452,2]
[368146077,1751038244748,-460.0,0.00019452,2]
[368146078,1751038244758,-392.35,0.00019452,2]
[368146079,1751038244767,-460.0,0.00019452,2]
[368146080,1751038244777,-460.0,0.00019452,2]
[368146081,1751038244787,-460.0,0.00019452,2]
[368146082,1751038244797,-460.0,0.00019452,2]
[368146083,1751038244807,-460.0,0.00019452,2]
[368146084,1751038244817,-460.0,0.00019452,2]
[368146085,1751038244826,-460.0,0.00019452,2]
[368146086,1751038244835,-460.0,0.00019452,2]
[368146087,1751038244845,-460.0,0.00019452,2]
[368146088,1751038244854,-460.0,0.00019452,2]
[368146089,1751038244863,-460.0,0.00019452,2]
[368146090,1751038244873,-460.0,0.00019452,2]
[368146091,1751038244883,-375.77171067,0.00019452,2]
[368146092,1751038244892,-460.0,0.00019452,2]
[368146093,1751038244902,-460.0,0.00019452,2]
[368146094,1751038244911,-627.13,0.00019452,2]
[368146095,1751038244921,-322.40624098,0.00019452,2]
[368146096,1751038244930,-460.0,0.00019452,2]
[368146097,1751038244939,-460.0,0.00019452,2]
[368146098,1751038244949,-460.0,0.00019452,2]
[368146099,1751038244958,-493.07,0.00019452,2]
[368146100,1751038244967,-460.0,0.00019452,2]
[368146101,1751038244977,-460.0,0.00019452,2]
[368146102,1751038244987,-460.0,0.00019452,2]
[368146103,1751038244996,-457.14349065,0.00019452,2]
[368146104,1751038245006,-460.0,0.00019452,2]
[368146105,1751038245015,-460.0,0.00019452,2]
[368146106,1751038245025,-324.20395017,0.00019452,2]
[368146107,1751038245034,-460.0,0.00019452,2]
[368146108,1751038245043,-430.0,0.00019452,2]
[368146109,1751038245052,-460.0,0.00019452,2]
[368146110,1751038245062,-460.0,0.00019452,2]
[368146111,1751038245071,-460.0,0.00019452,2]
[368146112,1751038245082,-460.0,0.00019452,2]
[368146113,1751038245091,-460.0,0.00019452,2]
[368146114,1751038245101,-460.0,0.00019452,2]
[368146115,1751038245110,-460.0,0.00019452,2]
[368146116,1751038245119,-1636.33,0.00019452,2]
[368146117,1751038245130,-460.0,0.00019452,2]
[368146118,1751038245140,-460.0,0.00019452,2]
[368146119,1751038245150,-460.0,0.00019452,2]
[368146120,1751038245161,-460.0,0.00019452,2]
[368146121,1751038245170,-460.0,0.00019452,2]
[368146122,1751038245180,-977.32,0.00019452,2]
[368146123,1751038245190,-460.0,0.00019452,2]
[368146124,1751038245200,-460.0,0.00019452,2]
[368146125,1751038245209,-460.0,0.00019452,2]
[368146126,1751038245218,-460.0,0.00019452,2]
[368146127,1751038245227,-460.0,0.00019452,2]
[368146128,1751038245237,-460.0,0.00019452,2]
[368146129,1751038245246,-460.0,0.00019452,2]
[368146130,1751038245256,-5210.38,0.00019452,2]
[368146131,1751038245265,-360.0,0.00019452,2]
[368146132,1751038245274,-381.30568454,0.00019452,2]
[368146133,1751038245284,-958.14,0.00019452,2]
[368146134,1751038245294,-524.72,0.00019452,2]
[368146135,1751038245304,-460.0,0.00019452,2]
[368146136,1751038245314,-3966.91,0.00019452,2]
[368146137,1751038245324,-1083.49,0.00019452,2]
[368146138,1751038245333,-1615.3,0.00019452,2]
[368146139,1751038245342,-460.0,0.00019452,2]
[368146140,1751038245351,-460.0,0.00019452,2]
[368146141,1751038245361,-460.0,0.00019452,2]
[368146142,1751038245371,-460.0,0.00019452,2]
[368146143,1751038245472,-460.0,0.00019452,2]
[368146144,1751038245482,-460.0,0.00019452,2]
[368146145,1751038245491,-460.0,0.00019452,2]
[368146146,1751038245500,-460.0,0.00019452,2]
[368146147,1751038245509,-460.0,0.00019452,2]
[368146148,1751038245519,-1051.43,0.00019452,2]
[368146149,1751038245529,-821.81,0.00019452,2]
[368146150,1751038245538,-460.0,0.00019452,2]
[368146151,1751038245550,-460.0,0.00019452,2]
[368146152,1751038245560,-460.0,0.00019452,2]
[368146153,1751038245569,-460.0,0.00019452,2]
[368146154,1751038245579,-460.0,0.00019452,2]
[368146155,1751038245587,-460.0,0.00019452,2]
[368146156,1751038245597,-493.34,0.00019452,2]
[368146157,1751038245606,-460.0,0.00019452,2]
[368146158,1751038245616,-460.0,0.00019452,2]
[368146159,1751038245625,-460.0,0.00019452,2]
[368146160,1751038245634,-213.92,0.00019452,2]
[368146161,1751038245643,-460.0,0.00019452,2]
[368146162,1751038245652,-5570.99,0.00019452,2]
[368146163,1751038245662,-460.0,0.00019452,2]
[368146164,1751038245671,-460.0,0.00019452,2]
[368146165,1751038245681,-161.7836137,0.00019452,2]
[368146166,1751038245691,-460.0,0.00019452,2]
[368146167,1751038245700,-1168.98,0.00019452,2]
[368146168,1751038245711,-460.0,0.00019452,2]
[368146169,1751038245721,-460.0,0.00019452,2]
[368146170,1751038245730,-5551.03,0.00019452,2]
[368146171,1751038245740,-335.77418389,0.00019452,2]
[368146172,1751038245750,-460.0,0.00019452,2]
[368146173,1751038245760,-1027.11,0.00019452,2]
[368146174,1751038245770,-460.0,0.00019452,2]
[368146175,1751038245780,-460.0,0.00019452,2]
[368146176,1751038245790,-460.0,0.00019452,2]
[368146177,1751038245804,-835.24,0.00019452,2]
[368146178,1751038245814,-460.0,0.00019452,2]
[368146179,1751038245824,-460.0,0.00019452,2]
[368146180,1751038245834,-460.0,0.00019452,2]
[368146181,1751038245844,-460.0,0.00019452,2]
[368146182,1751038245856,-460.0,0.00019452,2]
[368146183,1751038245866,-729.15,0.00019452,2]
[368146184,1751038245877,-460.0,0.00019452,2]
[368146185,1751038245887,-460.0,0.00019452,2]
[368146186,1751038245897,-460.0,0.00019452,2]
[368146187,1751038245908,-460.0,0.00019452,2]
[368146188,1751038245918,-1628.16,0.00019452,2]
[368146189,1751038245928,-460.0,0.00019452,2]
[368146190,1751038245938,-460.0,0.00019452,2]
[368146191,1751038245948,-460.0,0.00019452,2]
[368146192,1751038245957,-648.14,0.00019452,2]
[368146193,1751038245966,-551.64,0.00019452,2]
[368146194,1751038245976,-460.0,0.00019452,2]
[368146195,1751038245986,-460.0,0.00019452,2]
[368146197,1751038245995,-3080.1,0.00019452,2]
[368146199,1751038246004,-460.0,0.00019452,2]
[368146200,1751038246014,-460.0,0.00019452,2]
[368146202,1751038246023,-460.0,0.00019452,2]
[368146203,1751038246033,-460.0,0.00019452,2]
[368146204,1751038246042,-3962.82,0.00019452,2]
[368146206,1751038246056,-259.18330606,0.00019452,2]
[368146208,1751038246066,-460.0,0.00019452,2]
[368146209,1751038246076,-460.0,0.00019452,2]
[368146211,1751038246088,-482.95,0.00019452,2]
[368146213,1751038246098,-460.0,0.00019452,2]
[368146215,1751038246108,-460.0,0.00019452,2]
[368146216,1751038246117,-460.0,0.00019452,2]
[368146217,1751038246127,-216.77735185,0.00019452,2]
[368146218,1751038246136,-460.0,0.00019452,2]
[368146219,1751038246145,-2701.86,0.00019452,2]
[368146220,1751038246156,-960.06,0.00019452,2]
[368146221,1751038246166,-460.0,0.00019452,2]
[368146223,1751038246175,-460.0,0.00019452,2]
[368146225,1751038246184,-598.88,0.00019452,2]
[368146227,1751038246194,-460.0,0.00019452,2]
[368146229,1751038246203,-460.0,0.00019452,2]
[368146230,1751038246212,-460.0,0.00019452,2]
[368146232,1751038246221,-460.0,0.00019452,2]
[368146234,1751038246230,-460.0,0.00019452,2]
[368146236,1751038246240,-460.0,0.00019452,2]
[368146238,1751038246250,-516.39,0.00019452,2]
[368146240,1751038246259,-460.0,0.00019452,2]
[368146241,1751038246268,-1018.47,0.00019452,2]
[368146242,1751038246277,-460.0,0.00019452,2]
[368146243,1751038246286,-356.19508703,0.00019452,2]
[368146244,1751038246296,-460.0,0.00019452,2]
[368146245,1751038246305,-460.0,0.00019452,2]
[368146246,1751038246315,-460.0,0.00019452,2]
[368146247,1751038246324,-1550.47,0.00019452,2]
[368146248,1751038246333,-460.0,0.00019452,2]
[368146249,1751038246342,-460.0,0.00019452,2]
[368146250,1751038246352,-460.0,0.00019452,2]
[368146251,1751038246361,-460.0,0.00019452,2]
[368146252,1751038246374,-460.0,0.00019452,2]
[368146253,1751038246390,-460.0,0.00019452,2]
[368146254,1751038246406,-460.0,0.00019452,2]
[368146256,1751038246418,-1531.61,0.00019452,2]
[368146258,1751038246432,-1149.78,0.00019452,2]
[368146260,1751038246446,-1081.48,0.00019452,2]
[368146262,1751038246461,-460.0,0.00019452,2]
[368146264,1751038246474,-460.0,0.00019452,2]
[368146267,1751038246489,-584.17,0.00019452,2]
[368146269,1751038246504,-460.0,0.00019452,2]
[368146271,1751038246517,-460.0,0.00019452,2]
[368146272,1751038246530,-460.0,0.00019452,2]
[368146273,1751038246542,-460.0,0.00019452,2]
[368146274,1751038246557,-4259.37,0.00019452,2]
[368146275,1751038246570,-560.02,0.00019452,2]
[368146276,1751038246581,-153.78354599,0.00019452,2]
[368146277,1751038246594,-460.0,0.00019452,2]
[368146278,1751038246606,-460.0,0.00019452,2]
[368146279,1751038246620,-460.0,0.00019452,2]
[368146280,1751038246637,-460.0,0.00019452,2]
[368146281,1751038246652,-460.0,0.00019452,2]
[368146282,1751038246667,-460.0,0.00019452,2]
[368146283,1751038246679,-460.0,0.00019452,2]
[368146284,1751038246690,-460.0,0.00019452,2]
[368146285,1751038246704,-460.0,0.00019452,2]
[368146286,1751038246720,-1041.06,0.00019452,2]
[368146287,1751038246733,-550.7,0.00019452,2]
[368146288,1751038246745,-1937.51,0.00019452,2]
[368146289,1751038246757,-460.0,0.00019452,2]
[368146290,1751038246771,-412.59867766,0.00019452,2]
[368146291,1751038246783,-3901.22,0.00019452,2]
[368146292,1751038246794,-460.0,0.00019452,2]
[368146293,1751038246806,-588.09361166,0.00019452,2]
[368146294,1751038246818,-460.0,0.00019452,2]
[368146295,1751038246831,-1101.83,0.00019452,2]
[368146296,1751038246843,-460.0,0.00019452,2]
[368146297,1751038246855,-930.7,0.00019452,2]
[368146298,1751038246867,-460.0,0.00019452,2]
[368146299,1751038246880,-693.99,0.00019452,2]
[368146300,1751038246892,-545.86,0.00019452,2]
[368146301,1751038246904,-855.32,0.00019452,2]
[368146302,1751038246916,-460.0,0.00019452,2]
[368146303,1751038246927,-344.8429154,0.00019473,2]
[368146304,1751038246939,-500.0,0.00019473,2]
[368146305,1751038246951,-550.35644472,0.00019473,2]
[368146306,1751038246964,-733.99,0.00019586,2]
[368146307,1751038246975,-500.0,0.00019639,2]
[368146308,1751038246987,-1000.0,0.00019721,2]
[368146309,1751038246999,-1000.0,0.00019721,2]
[368146310,1751038247010,-1000.0,0.00019721,2]
[368146311,1751038247024,-1000.0,0.00019721,2]
[368146312,1751038247036,-1000.0,0.00019721,2]
[368146313,1751038247048,-1000.0,0.00019721,2]
[368146314,1751038247059,-1000.0,0.00019721,2]
[368146315,1751038247071,-502.51720373,0.00019721,2]
[368146316,1751038247087,-733.99,0.00019725,2]
[368146317,1751038247098,-733.99,0.00019725,2]
[368146318,1751038247110,-460.0,0.00019726,2]
[368146319,1751038247124,-460.0,0.00019726,2]
[368146320,1751038247136,-460.0,0.00019726,2]
[368146321,1751038247148,-460.0,0.00019726,2]
[368146322,1751038247161,-460.0,0.00019726,2]
[368146323,1751038247172,-460.0,0.00019726,2]
[368146324,1751038247184,-460.0,0.00019726,2]
[368146325,1751038247195,-460.0,0.00019726,2]
[368146326,1751038247207,-460.0,0.00019726,2]
[368146327,1751038247219,-460.0,0.00019726,2]
[368146328,1751038247231,-460.0,0.00019726,2]
[368146329,1751038247243,-460.0,0.00019726,2]
[368146330,1751038247254,-460.0,0.00019726,2]
[368146331,1751038247266,-460.0,0.00019726,2]
[368146332,1751038247277,-460.0,0.00019726,2]
[368146333,1751038247289,-460.0,0.00019726,2]
[368146334,1751038247303,-460.0,0.00019726,2]
[368146335,1751038247314,-523.16,0.00019726,2]
[368146336,1751038247326,-460.0,0.00019726,2]
[368146337,1751038247338,-460.0,0.00019726,2]
[368146338,1751038247350,-460.0,0.00019726,2]
[368146339,1751038247362,-460.0,0.00019726,2]
[368146340,1751038247374,-460.0,0.00019726,2]
[368146341,1751038247385,-440.0,0.00019726,2]
[368146342,1751038247397,-487.3,0.00019726,2]
[368146343,1751038247408,-369.85385931,0.00019726,2]
[368146344,1751038247420,-450.0,0.00019726,2]
[368146345,1751038247432,-460.0,0.00019726,2]
[368146346,1751038247445,-460.0,0.00019726,2]
[368146347,1751038247456,-460.0,0.00019726,2]
[368146348,1751038247466,-463.52287797,0.00019726,2]
[368146349,1751038247475,-460.0,0.00019726,2]
[368146350,1751038247590,-460.0,0.00019726,2]
[368146351,1751038247640,-460.0,0.00019726,2]
[368146352,1751038247650,-460.0,0.00019726,2]
[368146353,1751038247660,-460.0,0.00019726,2]
[368146354,1751038247670,-460.0,0.00019726,2]
[368146355,1751038247679,-460.0,0.00019726,2]
[368146356,1751038247689,-460.0,0.00019726,2]
[368146357,1751038247698,-460.0,0.00019726,2]
[368146358,1751038247708,-460.0,0.00019726,2]
[368146359,1751038247718,-460.0,0.00019726,2]
[368146360,1751038247727,-460.0,0.00019726,2]
[368146361,1751038247736,-460.0,0.00019726,2]
[368146362,1751038247746,-460.0,0.00019726,2]
[368146363,1751038247755,-352.46589784,0.00019726,2]
[368146364,1751038247764,-460.0,0.00019726,2]
[368146365,1751038247773,-460.0,0.00019726,2]
[368146366,1751038247783,-460.0,0.00019726,2]
[368146367,1751038247792,-305.20686427,0.00019726,2]
[368146368,1751038247802,-460.0,0.00019726,2]
[368146369,1751038247811,-627.13,0.00019726,2]
[368146370,1751038247821,-460.0,0.00019726,2]
[368146371,1751038247831,-460.0,0.00019726,2]
[368146372,1751038247840,-460.0,0.00019726,2]
[368146373,1751038247850,-493.07,0.00019726,2]
[368146374,1751038247859,-460.0,0.00019726,2]
[368146375,1751038247869,-460.0,0.00019726,2]
[368146376,1751038247879,-460.0,0.00019726,2]
[368146377,1751038247888,-460.0,0.00019726,2]
[368146378,1751038247898,-460.0,0.00019726,2]
[368146379,1751038247907,-460.0,0.00019726,2]
[368146380,1751038247917,-460.0,0.00019726,2]
[368146381,1751038247927,-460.0,0.00019726,2]
[368146382,1751038247936,-460.0,0.00019726,2]
[368146383,1751038247945,-460.0,0.00019726,2]
[368146384,1751038247954,-460.0,0.00019726,2]
[368146385,1751038247964,-460.0,0.00019726,2]
[368146386,1751038247974,-1636.33,0.00019726,2]
[368146387,1751038247983,-460.0,0.00019726,2]
[368146388,1751038247992,-460.0,0.00019726,2]
[368146389,1751038248002,-460.0,0.00019726,2]
[368146390,1751038248011,-460.0,0.00019726,2]
[368146391,1751038248021,-460.0,0.00019726,2]
[368146392,1751038248030,-977.32,0.00019726,2]
[368146393,1751038248040,-460.0,0.00019726,2]
[368146394,1751038248050,-460.0,0.00019726,2]
[368146395,1751038248060,-183.98105952,0.00019726,2]
[368146396,1751038248070,-460.0,0.00019726,2]
[368146397,1751038248083,-460.0,0.00019726,2]
[368146398,1751038248092,-460.0,0.00019726,2]
[368146399,1751038248102,-5210.38,0.00019726,2]
[368146400,1751038248111,-958.14,0.00019726,2]
[368146401,1751038248121,-524.72,0.00019726,2]
[368146402,1751038248131,-460.0,0.00019726,2]
[368146403,1751038248140,-3966.91,0.00019726,2]
[368146404,1751038248149,-1083.49,0.00019726,2]
[368146405,1751038248159,-1615.3,0.00019726,2]
[368146406,1751038248169,-460.0,0.00019726,2]
[368146407,1751038248179,-460.0,0.00019726,2]
[368146408,1751038248188,-460.0,0.00019726,2]
[368146409,1751038248198,-460.0,0.00019726,2]
[368146410,1751038248207,-460.0,0.00019726,2]
[368146411,1751038248216,-460.0,0.00019726,2]
[368146412,1751038248226,-460.0,0.00019726,2]
[368146413,1751038248235,-1051.43,0.00019726,2]
[368146414,1751038248245,-821.81,0.00019726,2]
[368146415,1751038248255,-460.0,0.00019726,2]
[368146416,1751038248264,-460.0,0.00019726,2]
[368146417,1751038248273,-460.0,0.00019726,2]
[368146418,1751038248283,-460.0,0.00019726,2]
[368146419,1751038248293,-460.0,0.00019726,2]
[368146420,1751038248305,-493.34,0.00019726,2]
[368146421,1751038248315,-460.0,0.00019726,2]
[368146422,1751038248324,-460.0,0.00019726,2]
[368146423,1751038248334,-460.0,0.00019726,2]
[368146424,1751038248343,-460.0,0.00019726,2]
[368146425,1751038248353,-5570.99,0.00019726,2]
[368146426,1751038248363,-460.0,0.00019726,2]
[368146427,1751038248373,-460.0,0.00019726,2]
[368146428,1751038248383,-460.0,0.00019726,2]
[368146429,1751038248392,-1168.98,0.00019726,2]
[368146430,1751038248405,-460.0,0.00019726,2]
[368146431,1751038248415,-460.0,0.00019726,2]
[368146432,1751038248424,-5551.03,0.00019726,2]
[368146433,1751038248434,-460.0,0.00019726,2]
[368146434,1751038248444,-1027.11,0.00019726,2]
[368146435,1751038248454,-460.0,0.00019726,2]
[368146436,1751038248464,-460.0,0.00019726,2]
[368146437,1751038248473,-460.0,0.00019726,2]
[368146438,1751038248483,-835.24,0.00019726,2]
[368146439,1751038248492,-460.0,0.00019726,2]
[368146440,1751038248501,-460.0,0.00019726,2]
[368146441,1751038248510,-460.0,0.00019726,2]
[368146442,1751038248520,-460.0,0.00019726,2]
[368146443,1751038248529,-460.0,0.00019726,2]
[368146444,1751038248539,-729.15,0.00019726,2]
[368146445,1751038248550,-460.0,0.00019726,2]
[368146446,1751038248559,-174.92160509,0.00019726,2]
[368146447,1751038248570,-460.0,0.00019726,2]
[368146448,1751038248579,-460.0,0.00019726,2]
[368146449,1751038248589,-1628.16,0.00019726,2]
[368146450,1751038248599,-460.0,0.00019726,2]
[368146451,1751038248608,-460.0,0.00019726,2]
[368146452,1751038248617,-450.0,0.00019726,2]
[368146453,1751038248627,-648.14,0.00019726,2]
[368146454,1751038248636,-551.64,0.00019726,2]
[368146455,1751038248645,-220.50009735,0.00019726,2]
[368146456,1751038248655,-460.0,0.00019726,2]
[368146457,1751038248664,-3080.1,0.00019726,2]
[368146458,1751038248674,-460.0,0.00019726,2]
[368146459,1751038248683,-460.0,0.00019726,2]
[368146460,1751038248692,-460.0,0.00019726,2]
[368146461,1751038248701,-460.0,0.00019726,2]
[368146462,1751038248711,-3962.82,0.00019726,2]
[368146463,1751038248720,-460.0,0.00019726,2]
[368146464,1751038248730,-460.0,0.00019726,2]
[368146465,1751038248741,-482.95,0.00019726,2]
[368146466,1751038248750,-460.0,0.00019726,2]
[368146467,1751038248760,-460.0,0.00019726,2]
[368146468,1751038248770,-460.0,0.00019726,2]
[368146469,1751038248779,-460.0,0.00019726,2]
[368146470,1751038248789,-2701.86,0.00019726,2]
[368146471,1751038248800,-960.06,0.00019726,2]
[368146472,1751038248810,-460.0,0.00019726,2]
[368146473,1751038248820,-460.0,0.00019726,2]
[368146474,1751038248829,-598.88,0.00019726,2]
[368146475,1751038248839,-460.0,0.00019726,2]
[368146476,1751038248849,-460.0,0.00019726,2]
[368146477,1751038248860,-460.0,0.00019726,2]
[368146478,1751038248870,-460.0,0.00019726,2]
[368146479,1751038248880,-460.0,0.00019726,2]
[368146480,1751038248890,-516.39,0.00019726,2]
[368146481,1751038248900,-460.0,0.00019726,2]
[368146482,1751038248910,-1018.47,0.00019726,2]
[368146483,1751038248920,-460.0,0.00019726,2]
[368146484,1751038248930,-460.0,0.00019726,2]
[368146485,1751038248939,-309.72760043,0.00019726,2]
[368146486,1751038248949,-460.0,0.00019726,2]
[368146487,1751038248959,-1550.47,0.00019726,2]
[368146488,1751038248968,-460.0,0.00019726,2]
[368146489,1751038248978,-460.0,0.00019726,2]
[368146490,1751038248987,-460.0,0.00019726,2]
[368146491,1751038248997,-460.0,0.00019726,2]
[368146492,1751038249006,-463.45030882,0.00019726,2]
[368146493,1751038249015,-460.0,0.00019726,2]
[368146494,1751038249024,-1531.61,0.00019726,2]
[368146495,1751038249034,-1149.78,0.00019726,2]
[368146496,1751038249043,-1081.48,0.00019726,2]
[368146497,1751038249054,-460.0,0.00019726,2]
[368146498,1751038249064,-460.0,0.00019726,2]
[368146499,1751038249074,-584.17,0.00019726,2]
[368146500,1751038249087,-460.0,0.00019726,2]
[368146501,1751038249097,-460.0,0.00019726,2]
[368146502,1751038249106,-460.0,0.00019726,2]
[368146503,1751038249116,-4259.37,0.00019726,2]
[368146504,1751038249127,-560.02,0.00019726,2]
[368146505,1751038249136,-434.33483891,0.00019726,2]
[368146506,1751038249146,-460.0,0.00019726,2]
[368146507,1751038249156,-460.0,0.00019726,2]
[368146508,1751038249166,-460.0,0.00019726,2]
[368146509,1751038249176,-460.0,0.00019726,2]
[368146510,1751038249186,-460.0,0.00019726,2]
[368146511,1751038249195,-460.0,0.00019726,2]
[368146512,1751038249205,-1041.06,0.00019726,2]
[368146513,1751038249215,-460.0,0.00019726,2]
[368146514,1751038249224,-1937.51,0.00019726,2]
[368146515,1751038249234,-550.7,0.00019726,2]
[368146516,1751038249244,-460.0,0.00019726,2]
[368146517,1751038249253,-3901.22,0.00019726,2]
[368146518,1751038249263,-460.0,0.00019726,2]
[368146519,1751038249272,-460.0,0.00019726,2]
[368146520,1751038249282,-1101.83,0.00019726,2]
[368146521,1751038249292,-460.0,0.00019726,2]
[368146522,1751038249302,-930.7,0.00019726,2]
[368146523,1751038249312,-460.0,0.00019726,2]
[368146524,1751038249322,-693.99,0.00019726,2]
[368146525,1751038249332,-545.86,0.00019726,2]
[368146526,1751038249342,-855.32,0.00019726,2]